[Event "*** Titled Tuesday Blitz"]
[Site "Chess.com"]
[Date "2020.12.01"]
[Round "1"]
[White "Shield12"]
[Black "RobPeresian"]
[Result "1-0"]
[WhiteElo "2928"]
[BlackElo "2443"]
[TimeControl "180+1"]
[EndTime "10:05:35 PST"]
[Termination "Shield12 won by resignation"]

1. e4 {[%clk 0:03:00.9]} 1... e5 {[%clk 0:02:57.9]} 2. Nf3 {[%clk 0:03:01]} 2...
Nc6 {[%clk 0:02:56.8]} 3. Nc3 {[%clk 0:03:01.9]} 3... Nf6 {[%clk 0:02:55.8]} 4.
Be2 {[%clk 0:03:02.5]} 4... Bb4 {[%clk 0:02:54.2]} 5. Nd5 {[%clk 0:03:02.4]}
5... Bc5 {[%clk 0:02:50.9]} 6. d3 {[%clk 0:03:02.3]} 6... h6 {[%clk 0:02:49.4]}
7. c3 {[%clk 0:03:02.4]} 7... d6 {[%clk 0:02:49.1]} 8. b4 {[%clk 0:03:02.7]}
8... Bb6 {[%clk 0:02:49]} 9. a4 {[%clk 0:03:03.3]} 9... a5 {[%clk 0:02:47]} 10.
Nxb6 {[%clk 0:03:03.4]} 10... cxb6 {[%clk 0:02:47.9]} 11. b5 {[%clk 0:03:04.3]}
11... Ne7 {[%clk 0:02:47.2]} 12. O-O {[%clk 0:03:04.5]} 12... O-O {[%clk
0:02:47.4]} 13. c4 {[%clk 0:03:05.1]} 13... Nd7 {[%clk 0:02:45.2]} 14. Bb2
{[%clk 0:03:06]} 14... f5 {[%clk 0:02:44.2]} 15. exf5 {[%clk 0:03:04.5]} 15...
Nxf5 {[%clk 0:02:40]} 16. d4 {[%clk 0:03:04.8]} 16... e4 {[%clk 0:02:39.8]} 17.
Nd2 {[%clk 0:03:04.6]} 17... e3 {[%clk 0:02:36.1]} 18. Ne4 {[%clk 0:03:04.9]}
18... Qe8 {[%clk 0:02:28.4]} 19. Bd3 {[%clk 0:03:03]} 19... Qg6 {[%clk 0:02:16]}
20. fxe3 {[%clk 0:03:01.3]} 20... Nh4 {[%clk 0:02:08.5]} 21. Nf6+ {[%clk
0:02:55.1]} 21... Rxf6 {[%clk 0:02:00.7]} 22. Bxg6 {[%clk 0:02:54.8]} 22... Rxg6
{[%clk 0:02:01.6]} 23. g3 {[%clk 0:02:53.4]} 23... Nf6 {[%clk 0:02:01.4]} 24.
Rxf6 {[%clk 0:02:43.3]} 24... Rxf6 {[%clk 0:01:24.1]} 25. gxh4 {[%clk
0:02:42.1]} 25... Bh3 {[%clk 0:01:24.6]} 26. h5 {[%clk 0:02:04.6]} 26... Raf8
{[%clk 0:01:23.2]} 27. Qe2 {[%clk 0:02:03.9]} 27... Rf3 {[%clk 0:01:16.5]} 28.
Re1 {[%clk 0:01:52]} 28... R8f5 {[%clk 0:01:14.6]} 29. e4 {[%clk 0:01:48.7]}
29... Rg5+ {[%clk 0:00:58.4]} 30. Kh1 {[%clk 0:01:48]} 30... Rb3 {[%clk
0:00:57.2]} 31. Bc1 {[%clk 0:01:44.5]} 31... Rg4 {[%clk 0:00:45.5]} 32. Rg1
{[%clk 0:01:39]} 32... Rh4 {[%clk 0:00:38.4]} 33. Bxh6 {[%clk 0:01:33.6]} 33...
Kh7 {[%clk 0:00:24.9]} 34. Bg5 {[%clk 0:01:33.3]} 1-0

[Event "*** Titled Tuesday Blitz"]
[Site "Chess.com"]
[Date "2020.12.01"]
[Round "1"]
[White "Sam_ChessMood"]
[Black "ExtremeLearner"]
[Result "1-0"]
[WhiteElo "2831"]
[BlackElo "2409"]
[TimeControl "180+1"]
[EndTime "10:05:35 PST"]
[Termination "Sam_ChessMood won by resignation"]

1. d4 {[%clk 0:03:00]} 1... d5 {[%clk 0:02:57.6]} 2. c4 {[%clk 0:02:59.5]} 2...
e6 {[%clk 0:02:57.4]} 3. Nc3 {[%clk 0:02:57.5]} 3... Bb4 {[%clk 0:02:56.2]} 4.
Nf3 {[%clk 0:02:55.6]} 4... Nf6 {[%clk 0:02:55.8]} 5. Bg5 {[%clk 0:02:54.7]}
5... h6 {[%clk 0:02:51.7]} 6. Bd2 {[%clk 0:02:54.7]} 6... O-O {[%clk 0:02:48.3]}
7. g4 {[%clk 0:02:54.4]} 7... Bxc3 {[%clk 0:02:36.8]} 8. Bxc3 {[%clk 0:02:55.3]}
8... Nxg4 {[%clk 0:02:30.3]} 9. Qc2 {[%clk 0:02:38.3]} 9... f5 {[%clk 0:02:27]}
10. Rg1 {[%clk 0:02:34.9]} 10... c6 {[%clk 0:02:21.9]} 11. e3 {[%clk 0:02:28]}
11... Qc7 {[%clk 0:02:08.6]} 12. O-O-O {[%clk 0:02:13.7]} 12... a5 {[%clk
0:01:58.4]} 13. h3 {[%clk 0:01:43.9]} 13... Nf6 {[%clk 0:01:56.9]} 14. Ne5
{[%clk 0:01:44.1]} 14... Nbd7 {[%clk 0:01:54]} 15. Ng6 {[%clk 0:01:38.1]} 15...
Re8 {[%clk 0:01:48.5]} 16. f3 {[%clk 0:01:37.5]} 16... Nf8 {[%clk 0:01:28.9]}
17. Nf4 {[%clk 0:01:36.7]} 17... Kh8 {[%clk 0:01:19.2]} 18. Kb1 {[%clk
0:01:36.5]} 18... g5 {[%clk 0:01:12.3]} 19. Nd3 {[%clk 0:01:36.1]} 19... Ng6
{[%clk 0:01:12.1]} 20. Ne5 {[%clk 0:01:31.1]} 20... Nxe5 {[%clk 0:01:09.5]} 21.
dxe5 {[%clk 0:01:32]} 21... Nh7 {[%clk 0:01:05.8]} 22. h4 {[%clk 0:01:31.2]}
22... Qe7 {[%clk 0:00:57]} 23. cxd5 {[%clk 0:01:27.3]} 23... cxd5 {[%clk
0:00:56]} 24. Bd3 {[%clk 0:01:27.2]} 24... Bd7 {[%clk 0:00:54.7]} 25. hxg5
{[%clk 0:01:17.3]} 25... Nxg5 {[%clk 0:00:48.1]} 26. f4 {[%clk 0:01:11.7]} 26...
Ne4 {[%clk 0:00:47.6]} 27. Bxe4 {[%clk 0:01:12.1]} 27... dxe4 {[%clk 0:00:44.5]}
28. Qh2 {[%clk 0:01:11.8]} 28... Qh7 {[%clk 0:00:36.1]} 29. Rxd7 {[%clk
0:01:11.2]} 29... Qxd7 {[%clk 0:00:36.2]} 30. Qxh6+ {[%clk 0:01:11]} 30... Qh7
{[%clk 0:00:37.1]} 31. Qf6+ {[%clk 0:01:11.1]} 1-0

[Event "*** Titled Tuesday Blitz"]
[Site "Chess.com"]
[Date "2020.12.01"]
[Round "1"]
[White "Bigfish1995"]
[Black "Region_07"]
[Result "1-0"]
[WhiteElo "3058"]
[BlackElo "2457"]
[TimeControl "180+1"]
[EndTime "10:05:38 PST"]
[Termination "Bigfish1995 won by resignation"]

1. d4 {[%clk 0:02:29.4]} 1... d5 {[%clk 0:02:53.4]} 2. Bf4 {[%clk 0:02:27.9]}
2... Nc6 {[%clk 0:02:52.7]} 3. e3 {[%clk 0:02:25.6]} 3... Nf6 {[%clk 0:02:52]}
4. Bb5 {[%clk 0:02:23.5]} 4... e6 {[%clk 0:02:48.4]} 5. c4 {[%clk 0:02:21.2]}
5... Bd6 {[%clk 0:02:40]} 6. Ne2 {[%clk 0:02:13]} 6... dxc4 {[%clk 0:02:36.3]}
7. Nd2 {[%clk 0:02:11.7]} 7... Nd5 {[%clk 0:02:21.9]} 8. Bxd6 {[%clk 0:02:04.3]}
8... cxd6 {[%clk 0:02:20.4]} 9. Bxc6+ {[%clk 0:02:04.3]} 9... bxc6 {[%clk
0:02:19.7]} 10. Nxc4 {[%clk 0:02:05.2]} 10... O-O {[%clk 0:02:16.6]} 11. O-O
{[%clk 0:02:04.9]} 11... Ba6 {[%clk 0:01:54.8]} 12. Rc1 {[%clk 0:02:05]} 12...
Rb8 {[%clk 0:01:51.4]} 13. b3 {[%clk 0:02:04.4]} 13... c5 {[%clk 0:01:39.1]} 14.
dxc5 {[%clk 0:01:47.3]} 14... dxc5 {[%clk 0:01:40]} 15. Ng3 {[%clk 0:01:47.6]}
15... Nb4 {[%clk 0:01:34.3]} 16. Qe2 {[%clk 0:01:47.9]} 16... Qd3 {[%clk
0:01:29.1]} 17. Rfe1 {[%clk 0:01:43.6]} 17... Rfd8 {[%clk 0:01:22.8]} 18. h3
{[%clk 0:01:43.9]} 18... Qxe2 {[%clk 0:01:02.5]} 19. Rxe2 {[%clk 0:01:43.9]}
19... h6 {[%clk 0:00:27.5]} 20. Ne4 {[%clk 0:01:43.8]} 20... Nd3 {[%clk
0:00:23.9]} 21. Rc3 {[%clk 0:01:43.5]} 21... Ne5 {[%clk 0:00:16.6]} 22. Rec2
{[%clk 0:01:31.6]} 22... Bxc4 {[%clk 0:00:15.7]} 23. bxc4 {[%clk 0:01:32.5]}
23... Rb1+ {[%clk 0:00:15.3]} 24. Kh2 {[%clk 0:01:32.4]} 24... Rc8 {[%clk
0:00:09]} 25. Ra3 {[%clk 0:01:32.2]} 25... Rb7 {[%clk 0:00:07.3]} 26. Nd6 {[%clk
0:01:31.9]} 1-0

[Event "*** Titled Tuesday Blitz"]
[Site "Chess.com"]
[Date "2020.12.01"]
[Round "1"]
[White "tdf98pantani"]
[Black "Fortitudine"]
[Result "1-0"]
[WhiteElo "2699"]
[BlackElo "2352"]
[TimeControl "180+1"]
[EndTime "10:05:38 PST"]
[Termination "tdf98pantani won by resignation"]

1. e4 {[%clk 0:02:59.2]} 1... c5 {[%clk 0:02:58.6]} 2. Nf3 {[%clk 0:02:59.4]}
2... d6 {[%clk 0:02:58.8]} 3. Bb5+ {[%clk 0:02:55.5]} 3... Nd7 {[%clk
0:02:59.1]} 4. a4 {[%clk 0:02:55.5]} 4... g6 {[%clk 0:02:58.1]} 5. O-O {[%clk
0:02:55.2]} 5... Bg7 {[%clk 0:02:57.8]} 6. Re1 {[%clk 0:02:55.4]} 6... Nf6
{[%clk 0:02:57.2]} 7. c3 {[%clk 0:02:55.4]} 7... O-O {[%clk 0:02:56.6]} 8. h3
{[%clk 0:02:54.7]} 8... a6 {[%clk 0:02:46.8]} 9. Bf1 {[%clk 0:02:54.3]} 9... b6
{[%clk 0:02:46.8]} 10. d4 {[%clk 0:02:52.6]} 10... cxd4 {[%clk 0:02:45.1]} 11.
cxd4 {[%clk 0:02:51.2]} 11... e5 {[%clk 0:02:28.6]} 12. Nc3 {[%clk 0:02:49.7]}
12... Bb7 {[%clk 0:02:27.1]} 13. d5 {[%clk 0:02:38.9]} 13... Rc8 {[%clk
0:02:13.2]} 14. Be3 {[%clk 0:02:28.2]} 14... h6 {[%clk 0:02:09.8]} 15. Nd2
{[%clk 0:02:27.7]} 15... Ne8 {[%clk 0:01:37.2]} 16. Nc4 {[%clk 0:02:08.7]} 16...
f5 {[%clk 0:01:34.6]} 17. f3 {[%clk 0:01:56.1]} 17... fxe4 {[%clk 0:01:23.5]}
18. Nxe4 {[%clk 0:01:50.6]} 18... Nc5 {[%clk 0:01:10.4]} 19. Nxc5 {[%clk
0:01:30.1]} 19... dxc5 {[%clk 0:00:50.3]} 20. Qb3 {[%clk 0:01:25]} 20... Bxd5
{[%clk 0:00:27.3]} 21. Rad1 {[%clk 0:01:24.1]} 21... Kh7 {[%clk 0:00:27]} 22.
Qxb6 {[%clk 0:01:15.9]} 22... Qxb6 {[%clk 0:00:18.6]} 23. Nxb6 {[%clk
0:01:15.7]} 23... Rd8 {[%clk 0:00:18.2]} 24. Nxd5 {[%clk 0:01:13]} 1-0

[Event "*** Titled Tuesday Blitz"]
[Site "Chess.com"]
[Date "2020.12.01"]
[Round "1"]
[White "Karacsonyi_Gellert"]
[Black "aa175"]
[Result "1-0"]
[WhiteElo "2663"]
[BlackElo "2328"]
[TimeControl "180+1"]
[EndTime "10:05:39 PST"]
[Termination "Karacsonyi_Gellert won on time"]

1. e4 {[%clk 0:03:00.9]} 1... c5 {[%clk 0:02:59.3]} 2. Nf3 {[%clk 0:03:00.7]}
2... d6 {[%clk 0:02:59.7]} 3. d4 {[%clk 0:02:59.3]} 3... cxd4 {[%clk 0:03:00.6]}
4. Nxd4 {[%clk 0:03:00.2]} 4... Nf6 {[%clk 0:03:01.1]} 5. Nc3 {[%clk 0:02:59.8]}
5... a6 {[%clk 0:03:00.5]} 6. Bc4 {[%clk 0:02:57.4]} 6... e6 {[%clk 0:02:56.1]}
7. O-O {[%clk 0:02:56.7]} 7... Qc7 {[%clk 0:02:49.6]} 8. Bb3 {[%clk 0:02:56.8]}
8... Nc6 {[%clk 0:02:48.7]} 9. Be3 {[%clk 0:02:45.6]} 9... Be7 {[%clk
0:02:43.8]} 10. Qf3 {[%clk 0:02:46]} 10... O-O {[%clk 0:02:26.4]} 11. Qg3 {[%clk
0:02:46.2]} 11... b5 {[%clk 0:02:20]} 12. Rad1 {[%clk 0:02:41.6]} 12... Bb7
{[%clk 0:02:14.7]} 13. Bh6 {[%clk 0:02:40.8]} 13... Ne8 {[%clk 0:02:03.4]} 14.
Nf3 {[%clk 0:02:37]} 14... Rc8 {[%clk 0:01:57.6]} 15. Ne2 {[%clk 0:02:37]} 15...
Na5 {[%clk 0:01:37.6]} 16. e5 {[%clk 0:01:53.3]} 16... Nxb3 {[%clk 0:01:23.6]}
17. cxb3 {[%clk 0:01:54.2]} 17... Bxf3 {[%clk 0:01:19.5]} 18. gxf3 {[%clk
0:01:49]} 18... dxe5 {[%clk 0:01:17.6]} 19. Nc3 {[%clk 0:01:46.2]} 19... Qa5
{[%clk 0:00:59]} 20. Kh1 {[%clk 0:01:46.1]} 20... b4 {[%clk 0:00:20.6]} 21. Bxg7
{[%clk 0:01:39.6]} 21... Bh4 {[%clk 0:00:03.1]} 22. Qxh4 {[%clk 0:01:35.5]}
22... Nxg7 {[%clk 0:00:02.9]} 23. Ne4 {[%clk 0:01:36]} 23... f5 {[%clk
0:00:02.1]} 24. Rd7 {[%clk 0:01:24.6]} 24... fxe4 {[%clk 0:00:01.3]} 25. Qe7
{[%clk 0:01:25]} 1-0

[Event "*** Titled Tuesday Blitz"]
[Site "Chess.com"]
[Date "2020.12.01"]
[Round "1"]
[White "suyu28"]
[Black "MillyNeuf"]
[Result "1-0"]
[WhiteElo "2643"]
[BlackElo "2317"]
[TimeControl "180+1"]
[EndTime "10:05:39 PST"]
[Termination "suyu28 won by resignation"]

1. d4 {[%clk 0:02:58]} 1... Nf6 {[%clk 0:02:59.6]} 2. Nf3 {[%clk 0:02:57.4]}
2... d5 {[%clk 0:02:59.5]} 3. Bf4 {[%clk 0:02:46.6]} 3... c5 {[%clk 0:02:58.3]}
4. e3 {[%clk 0:02:45.6]} 4... Nc6 {[%clk 0:02:57.9]} 5. c3 {[%clk 0:02:45.9]}
5... Qb6 {[%clk 0:02:57.6]} 6. Qb3 {[%clk 0:02:45.6]} 6... c4 {[%clk 0:02:57.4]}
7. Qc2 {[%clk 0:02:46.1]} 7... Bf5 {[%clk 0:02:56.9]} 8. Qc1 {[%clk 0:02:46.6]}
8... e6 {[%clk 0:02:56.5]} 9. h3 {[%clk 0:02:44.3]} 9... h6 {[%clk 0:02:54.1]}
10. Nbd2 {[%clk 0:02:44.3]} 10... Qd8 {[%clk 0:02:50.4]} 11. Be2 {[%clk
0:02:43.9]} 11... Bd6 {[%clk 0:02:48.8]} 12. Bxd6 {[%clk 0:02:39.4]} 12... Qxd6
{[%clk 0:02:49.7]} 13. Bd1 {[%clk 0:02:39]} 13... O-O {[%clk 0:02:43.4]} 14. Bc2
{[%clk 0:02:39]} 14... Bxc2 {[%clk 0:02:42.6]} 15. Qxc2 {[%clk 0:02:39.2]} 15...
b5 {[%clk 0:02:37.6]} 16. e4 {[%clk 0:02:37]} 16... dxe4 {[%clk 0:02:34.7]} 17.
Nxe4 {[%clk 0:02:36.5]} 17... Nxe4 {[%clk 0:02:34.8]} 18. Qxe4 {[%clk
0:02:37.4]} 18... Qd5 {[%clk 0:02:34.7]} 19. Qe2 {[%clk 0:02:29.6]} 19... Rfe8
{[%clk 0:02:28]} 20. Rd1 {[%clk 0:02:27]} 20... b4 {[%clk 0:02:21.2]} 21. O-O
{[%clk 0:02:25.1]} 21... a5 {[%clk 0:02:16.5]} 22. Nd2 {[%clk 0:02:17.4]} 22...
b3 {[%clk 0:01:51.9]} 23. Nxc4 {[%clk 0:02:08.3]} 23... bxa2 {[%clk 0:01:50.1]}
24. Nb6 {[%clk 0:02:07.7]} 24... Qb3 {[%clk 0:01:47]} 25. Nxa8 {[%clk
0:02:05.2]} 25... Rxa8 {[%clk 0:01:47.9]} 26. Ra1 {[%clk 0:02:04]} 26... a4
{[%clk 0:01:47.8]} 27. Rfc1 {[%clk 0:01:55.3]} 27... Na5 {[%clk 0:01:46.7]} 28.
c4 {[%clk 0:01:55.1]} 28... Rc8 {[%clk 0:01:44.8]} 29. Rc3 {[%clk 0:01:52.7]}
29... Qb4 {[%clk 0:01:30.7]} 30. Rxa2 {[%clk 0:01:52.4]} 30... Rxc4 {[%clk
0:01:29]} 31. Qc2 {[%clk 0:01:41.1]} 31... Rxc3 {[%clk 0:01:22.2]} 32. bxc3
{[%clk 0:01:40.2]} 32... Qb3 {[%clk 0:01:10.8]} 33. Qxb3 {[%clk 0:01:39.2]}
33... Nxb3 {[%clk 0:01:07.7]} 34. Rxa4 {[%clk 0:01:37.9]} 34... g5 {[%clk
0:01:08.6]} 35. f3 {[%clk 0:01:33.4]} 35... Kg7 {[%clk 0:01:08.4]} 36. Kf1
{[%clk 0:01:28.6]} 36... h5 {[%clk 0:01:09]} 37. Ke1 {[%clk 0:01:26.4]} 37...
Kf6 {[%clk 0:01:09.2]} 38. Kd1 {[%clk 0:01:25.5]} 38... Kf5 {[%clk 0:01:08.7]}
39. Kc2 {[%clk 0:01:25.7]} 39... Kf4 {[%clk 0:01:07.5]} 40. Kxb3 {[%clk
0:01:26]} 40... Kg3 {[%clk 0:01:08.4]} 41. Ra2 {[%clk 0:01:26]} 41... f5 {[%clk
0:01:08.9]} 42. c4 {[%clk 0:01:26]} 42... h4 {[%clk 0:01:09.8]} 43. c5 {[%clk
0:01:26]} 43... f4 {[%clk 0:01:10.7]} 44. c6 {[%clk 0:01:25.9]} 44... e5 {[%clk
0:01:11.6]} 45. dxe5 {[%clk 0:01:24.3]} 45... g4 {[%clk 0:01:11.4]} 46. fxg4
{[%clk 0:01:24.5]} 46... Kh2 {[%clk 0:01:11.7]} 47. e6 {[%clk 0:01:23.6]} 47...
f3 {[%clk 0:01:12.6]} 48. gxf3+ {[%clk 0:01:23.6]} 48... Kg3 {[%clk 0:01:12.3]}
49. e7 {[%clk 0:01:22.6]} 1-0

[Event "*** Titled Tuesday Blitz"]
[Site "Chess.com"]
[Date "2020.12.01"]
[Round "1"]
[White "reniite"]
[Black "TheCavemanChesss"]
[Result "0-1"]
[WhiteElo "1971"]
[BlackElo "2469"]
[TimeControl "180+1"]
[EndTime "10:05:41 PST"]
[Termination "TheCavemanChesss won by resignation"]

1. e4 {[%clk 0:03:00.9]} 1... c5 {[%clk 0:02:59.4]} 2. Nf3 {[%clk 0:03:01.2]}
2... d6 {[%clk 0:03:00]} 3. d4 {[%clk 0:03:01.6]} 3... cxd4 {[%clk 0:03:00.9]}
4. Nxd4 {[%clk 0:03:02.2]} 4... Nf6 {[%clk 0:03:01.5]} 5. Nc3 {[%clk 0:03:02.6]}
5... a6 {[%clk 0:03:02.2]} 6. h3 {[%clk 0:02:54.7]} 6... e5 {[%clk 0:02:59.5]}
7. Nde2 {[%clk 0:02:52.3]} 7... h5 {[%clk 0:03:00]} 8. g3 {[%clk 0:02:51.8]}
8... Be6 {[%clk 0:02:58.9]} 9. Be3 {[%clk 0:02:48.8]} 9... Nbd7 {[%clk
0:02:58.9]} 10. Qd2 {[%clk 0:02:45]} 10... Rc8 {[%clk 0:02:57.6]} 11. Bg2 {[%clk
0:02:39.1]} 11... Be7 {[%clk 0:02:54.8]} 12. O-O {[%clk 0:02:31.1]} 12... O-O
{[%clk 0:02:49.3]} 13. Kh2 {[%clk 0:02:30]} 13... Nb6 {[%clk 0:02:17.6]} 14. b3
{[%clk 0:02:26.7]} 14... d5 {[%clk 0:02:17.8]} 15. Nxd5 {[%clk 0:02:25.1]} 15...
Nbxd5 {[%clk 0:02:16.1]} 16. exd5 {[%clk 0:02:25.5]} 16... Nxd5 {[%clk
0:02:13.1]} 17. c4 {[%clk 0:02:24.9]} 17... Nxe3 {[%clk 0:01:56.7]} 18. Qxe3
{[%clk 0:02:23.9]} 18... Qc7 {[%clk 0:01:56.9]} 19. Rad1 {[%clk 0:02:16]} 19...
b5 {[%clk 0:01:53.1]} 20. cxb5 {[%clk 0:02:15.4]} 20... axb5 {[%clk 0:01:54]}
21. Bf3 {[%clk 0:02:05.8]} 21... g6 {[%clk 0:01:51.3]} 22. Bg2 {[%clk
0:01:48.2]} 22... Qc5 {[%clk 0:01:42.4]} 23. Qxc5 {[%clk 0:01:45.8]} 23... Rxc5
{[%clk 0:01:42.3]} 24. f4 {[%clk 0:01:46.3]} 24... Rc2 {[%clk 0:01:42]} 25. Rfe1
{[%clk 0:01:38.7]} 25... Bb4 {[%clk 0:01:39.3]} 26. Be4 {[%clk 0:01:31.1]} 26...
Rxa2 {[%clk 0:01:37.3]} 27. Ra1 {[%clk 0:01:28.3]} 27... Bxb3 {[%clk 0:01:25.5]}
28. Rxa2 {[%clk 0:01:22]} 28... Bxa2 {[%clk 0:01:26.4]} 29. Ra1 {[%clk
0:01:19.4]} 29... Bc4 {[%clk 0:01:26.2]} 30. Rb1 {[%clk 0:01:11.6]} 30... Bd2
{[%clk 0:01:16.5]} 31. Ng1 {[%clk 0:01:02.1]} 31... exf4 {[%clk 0:01:15.7]} 32.
Nf3 {[%clk 0:01:00.5]} 32... fxg3+ {[%clk 0:01:15.5]} 33. Kxg3 {[%clk
0:01:01.4]} 33... Bc3 {[%clk 0:01:15.8]} 34. Ne1 {[%clk 0:00:49.6]} 34... Re8
{[%clk 0:01:14.3]} 0-1

[Event "*** Titled Tuesday Blitz"]
[Site "Chess.com"]
[Date "2020.12.01"]
[Round "1"]
[White "lacafi"]
[Black "Slovak_fighter2000"]
[Result "1/2-1/2"]
[WhiteElo "2208"]
[BlackElo "2528"]
[TimeControl "180+1"]
[EndTime "10:05:43 PST"]
[Termination "Game drawn by repetition"]

1. d4 {[%clk 0:03:00.6]} 1... Nf6 {[%clk 0:02:56.5]} 2. Nf3 {[%clk 0:03:01.2]}
2... d5 {[%clk 0:02:56.5]} 3. e3 {[%clk 0:03:01.4]} 3... c5 {[%clk 0:02:55]} 4.
c3 {[%clk 0:03:01.5]} 4... Nc6 {[%clk 0:02:51.6]} 5. Nbd2 {[%clk 0:03:01.4]}
5... e6 {[%clk 0:02:50.4]} 6. Bd3 {[%clk 0:03:00.7]} 6... Bd6 {[%clk 0:02:49.5]}
7. Qe2 {[%clk 0:03:01.2]} 7... O-O {[%clk 0:02:41.3]} 8. dxc5 {[%clk 0:03:01]}
8... Bxc5 {[%clk 0:02:40.1]} 9. e4 {[%clk 0:03:01.9]} 9... a6 {[%clk 0:02:33.7]}
10. O-O {[%clk 0:02:55.7]} 10... b5 {[%clk 0:02:30.1]} 11. h3 {[%clk 0:02:41.6]}
11... Bb7 {[%clk 0:02:23.8]} 12. e5 {[%clk 0:02:36.7]} 12... Nd7 {[%clk
0:02:20.1]} 13. Re1 {[%clk 0:02:35.6]} 13... Bb6 {[%clk 0:02:18.3]} 14. Nf1
{[%clk 0:02:33.2]} 14... Nc5 {[%clk 0:02:16.8]} 15. Bc2 {[%clk 0:02:30.2]} 15...
b4 {[%clk 0:02:10.7]} 16. Ng3 {[%clk 0:02:25.5]} 16... a5 {[%clk 0:02:06.3]} 17.
Nh5 {[%clk 0:02:16]} 17... Ba6 {[%clk 0:01:56.7]} 18. Qd1 {[%clk 0:02:13.3]}
18... Ne4 {[%clk 0:01:52.5]} 19. Be3 {[%clk 0:01:52.3]} 19... bxc3 {[%clk
0:01:50.8]} 20. Bxb6 {[%clk 0:01:45.7]} 20... Qxb6 {[%clk 0:01:50.1]} 21. bxc3
{[%clk 0:01:45.5]} 21... Qxf2+ {[%clk 0:01:49.6]} 22. Kh2 {[%clk 0:01:44.2]}
22... Nxc3 {[%clk 0:01:24]} 23. Qc1 {[%clk 0:01:38.9]} 23... Ne4 {[%clk
0:01:19.8]} 24. Bxe4 {[%clk 0:00:54.5]} 24... dxe4 {[%clk 0:01:20.7]} 25. Qg5
{[%clk 0:00:54.5]} 25... g6 {[%clk 0:01:21.1]} 26. Nf6+ {[%clk 0:00:44.8]} 26...
Kg7 {[%clk 0:01:17.8]} 27. Nh5+ {[%clk 0:00:33.1]} 27... Kg8 {[%clk 0:01:17.9]}
28. Nf6+ {[%clk 0:00:20.1]} 28... Kg7 {[%clk 0:01:17.5]} 29. Nh5+ {[%clk
0:00:20.1]} 29... Kg8 {[%clk 0:01:17.8]} 1/2-1/2

[Event "*** Titled Tuesday Blitz"]
[Site "Chess.com"]
[Date "2020.12.01"]
[Round "1"]
[White "kasparicy"]
[Black "emperor87"]
[Result "0-1"]
[WhiteElo "2376"]
[BlackElo "2731"]
[TimeControl "180+1"]
[EndTime "10:05:46 PST"]
[Termination "emperor87 won by resignation"]

1. e4 {[%clk 0:02:03.7]} 1... d5 {[%clk 0:02:57.1]} 2. exd5 {[%clk 0:01:56.2]}
2... Qxd5 {[%clk 0:02:58]} 3. Nc3 {[%clk 0:01:56.7]} 3... Qd8 {[%clk 0:02:57.8]}
4. d4 {[%clk 0:01:56]} 4... c6 {[%clk 0:02:57.8]} 5. Nf3 {[%clk 0:01:55.2]} 5...
Nf6 {[%clk 0:02:58.2]} 6. Be2 {[%clk 0:01:54.7]} 6... Bf5 {[%clk 0:02:58.8]} 7.
O-O {[%clk 0:01:53]} 7... e6 {[%clk 0:02:58.9]} 8. h3 {[%clk 0:01:50]} 8... Bd6
{[%clk 0:02:57.6]} 9. Ne5 {[%clk 0:01:43.7]} 9... h6 {[%clk 0:02:54.3]} 10. Bf4
{[%clk 0:01:43.9]} 10... O-O {[%clk 0:02:53.2]} 11. Bg3 {[%clk 0:01:40.7]} 11...
Nd5 {[%clk 0:02:52.5]} 12. Bf3 {[%clk 0:01:35.8]} 12... Na6 {[%clk 0:02:49.8]}
13. Ne2 {[%clk 0:01:35.4]} 13... Nab4 {[%clk 0:02:40]} 14. c3 {[%clk 0:01:32.1]}
14... Bxe5 {[%clk 0:02:39.4]} 15. Bxe5 {[%clk 0:01:29.2]} 15... Nd3 {[%clk
0:02:39.5]} 16. Qd2 {[%clk 0:01:03.2]} 16... Nxe5 {[%clk 0:02:33.8]} 17. dxe5
{[%clk 0:01:04.1]} 17... Nb6 {[%clk 0:02:30.4]} 18. Qf4 {[%clk 0:01:01.1]} 18...
Qg5 {[%clk 0:02:28.2]} 19. Qxg5 {[%clk 0:00:49.8]} 19... hxg5 {[%clk 0:02:29.1]}
20. Rfd1 {[%clk 0:00:47.4]} 20... Rfd8 {[%clk 0:02:28]} 21. Nd4 {[%clk
0:00:47.8]} 21... Bg6 {[%clk 0:02:26.8]} 22. Kf1 {[%clk 0:00:38.8]} 22... Nc4
{[%clk 0:02:25.3]} 23. b3 {[%clk 0:00:38.4]} 23... Nxe5 {[%clk 0:02:24.9]} 24.
Be2 {[%clk 0:00:36.5]} 24... a6 {[%clk 0:02:22.4]} 25. Rd2 {[%clk 0:00:29.9]}
25... c5 {[%clk 0:02:18.3]} 26. Nf3 {[%clk 0:00:29.1]} 26... Nxf3 {[%clk
0:02:18]} 27. Rxd8+ {[%clk 0:00:28.8]} 27... Rxd8 {[%clk 0:02:18.9]} 28. Bxf3
{[%clk 0:00:29.7]} 28... b6 {[%clk 0:02:17.4]} 29. Ke1 {[%clk 0:00:29.2]} 29...
Kf8 {[%clk 0:02:16.6]} 30. a4 {[%clk 0:00:29.1]} 30... a5 {[%clk 0:02:14.1]} 31.
Ra2 {[%clk 0:00:26]} 31... Rd3 {[%clk 0:02:11.6]} 32. b4 {[%clk 0:00:19.5]}
32... cxb4 {[%clk 0:02:07.7]} 33. cxb4 {[%clk 0:00:20.4]} 33... axb4 {[%clk
0:02:07.7]} 34. Rb2 {[%clk 0:00:20.6]} 34... Rd4 {[%clk 0:02:02.3]} 35. Be2
{[%clk 0:00:18.1]} 35... Ke7 {[%clk 0:02:01.5]} 36. f3 {[%clk 0:00:11]} 36...
Kd6 {[%clk 0:02:01.3]} 37. Kf2 {[%clk 0:00:11.3]} 37... e5 {[%clk 0:02:00.6]}
38. Ke3 {[%clk 0:00:11.8]} 38... f6 {[%clk 0:01:59.9]} 39. Ra2 {[%clk
0:00:11.6]} 39... b3 {[%clk 0:01:58.5]} 40. Rb2 {[%clk 0:00:12]} 40... Bc2
{[%clk 0:01:57.8]} 0-1